[Event "Late Titled Tuesday Blitz February 8 2022"]
[White "Carbone, Diego"]
[Black "Levine, David"]
[WhiteFideId "3002179"]
[BlackFideId "2011611"]
[WhiteElo "2199"]
[BlackElo "2115"]
[Result "1-0"]
[Round "01"]
[TimeControl "180+1"]
[Date "2022.02.09"]
[WhiteClock "0:00:56"]
[BlackClock "0:00:21"]

1. d4 {[%clk 0:03:00]}  Nf6 {[%clk 0:02:59]} 2. c4 {[%clk 0:03:00]}  g6 {[%clk 0:02:59]} 3. g3 {[%clk 0:03:00]}  Bg7 {[%clk 0:02:59]} 4. Bg2 {[%clk 0:03:01]}  O-O {[%clk 0:02:59]} 5. Nc3 {[%clk 0:03:01]}  d6 {[%clk 0:02:58]} 6. Nf3 {[%clk 0:03:02]}  Nbd7 {[%clk 0:02:58]} 7. O-O {[%clk 0:03:03]}  e5 {[%clk 0:02:57]} 8. e4 {[%clk 0:03:03]}  exd4 {[%clk 0:02:52]} 9. Nxd4 {[%clk 0:03:03]}  Re8 {[%clk 0:02:52]} 10. h3 {[%clk 0:03:02]}  a6 {[%clk 0:02:50]} 11. Be3 {[%clk 0:02:59]}  Rb8 {[%clk 0:02:48]} 12. a4 {[%clk 0:02:43]}  a5 {[%clk 0:02:38]} 13. Ndb5 {[%clk 0:02:39]}  b6 {[%clk 0:02:26]} 14. Qc2 {[%clk 0:02:38]}  Nc5 {[%clk 0:02:23]} 15. Rad1 {[%clk 0:02:31]}  Qe7 {[%clk 0:02:16]} 16. Rfe1 {[%clk 0:02:29]}  Be6 {[%clk 0:02:16]} 17. b3 {[%clk 0:02:27]}  h6 {[%clk 0:02:15]} 18. Kh2 {[%clk 0:02:26]}  Nfd7 {[%clk 0:02:14]} 19. Nxc7 {[%clk 0:02:24]}  Red8 {[%clk 0:02:07]} 20. N7d5 {[%clk 0:02:13]}  Qf8 {[%clk 0:01:59]} 21. f4 {[%clk 0:02:12]}  f5 {[%clk 0:01:54]} 22. exf5 {[%clk 0:02:07]}  Bxf5 {[%clk 0:01:54]} 23. Qe2 {[%clk 0:01:48]}  Re8 {[%clk 0:01:47]} 24. Nb5 {[%clk 0:01:48]}  Nxb3 {[%clk 0:01:31]} 25. Ndc7 {[%clk 0:01:11]}  Nbc5 {[%clk 0:01:05]} 26. Nxe8 {[%clk 0:01:10]}  Rxe8 {[%clk 0:01:05]} 27. Nxd6 {[%clk 0:01:03]}  Ne4 {[%clk 0:00:54]} 28. Nxe8 {[%clk 0:01:00]}  Ndc5 {[%clk 0:00:21]} 29. Nxg7 {[%clk 0:00:56]} 1-0


[Site "https://www.chess.com"]

[Event "Late Titled Tuesday Blitz February 8 2022"]
[White "Chernomordik, Pavel"]
[Black "Jones, Gawain C B"]
[WhiteFideId "2804530"]
[BlackFideId "409561"]
[WhiteElo "2249"]
[BlackElo "2657"]
[Result "0-1"]
[Round "01"]
[TimeControl "180+1"]
[Date "2022.02.08"]
[WhiteClock "0:00:01"]
[BlackClock "0:00:03"]

1. e4 {[%clk 0:03:00]}  e5 {[%clk 0:02:59]} 2. Nf3 {[%clk 0:03:00]}  Nc6 {[%clk 0:02:59]} 3. Bb5 {[%clk 0:02:59]}  a6 {[%clk 0:02:59]} 4. Ba4 {[%clk 0:02:55]}  Nf6 {[%clk 0:02:59]} 5. Qe2 {[%clk 0:02:55]}  b5 {[%clk 0:02:57]} 6. Bb3 {[%clk 0:02:55]}  Bc5 {[%clk 0:02:57]} 7. a4 {[%clk 0:02:54]}  Rb8 {[%clk 0:02:55]} 8. axb5 {[%clk 0:02:53]}  axb5 {[%clk 0:02:55]} 9. d3 {[%clk 0:02:53]}  d6 {[%clk 0:02:54]} 10. h3 {[%clk 0:02:53]}  O-O {[%clk 0:02:51]} 11. Bg5 {[%clk 0:02:52]}  Be6 {[%clk 0:02:46]} 12. Nbd2 {[%clk 0:02:51]}  Bb6 {[%clk 0:02:27]} 13. O-O {[%clk 0:02:49]}  h6 {[%clk 0:02:26]} 14. Bh4 {[%clk 0:02:48]}  g5 {[%clk 0:02:26]} 15. Bg3 {[%clk 0:02:47]}  Nh5 {[%clk 0:02:24]} 16. Kh1 {[%clk 0:02:41]}  Nf4 {[%clk 0:02:17]} 17. Bxf4 {[%clk 0:02:40]}  gxf4 {[%clk 0:02:18]} 18. c3 {[%clk 0:02:39]}  Qf6 {[%clk 0:02:17]} 19. Nh2 {[%clk 0:02:36]}  Kh7 {[%clk 0:02:11]} 20. Qh5 {[%clk 0:02:30]}  Rg8 {[%clk 0:02:05]} 21. Ng4 {[%clk 0:02:21]}  Qg6 {[%clk 0:01:48]} 22. Qxg6+ {[%clk 0:02:10]}  Rxg6 {[%clk 0:01:49]} 23. Bxe6 {[%clk 0:02:04]}  fxe6 {[%clk 0:01:47]} 24. Nf3 {[%clk 0:01:58]}  h5 {[%clk 0:01:44]} 25. Ngh2 {[%clk 0:01:57]}  Rbg8 {[%clk 0:01:44]} 26. Nh4 {[%clk 0:01:56]}  R6g7 {[%clk 0:01:39]} 27. N2f3 {[%clk 0:01:51]}  b4 {[%clk 0:01:36]} 28. Kg1 {[%clk 0:01:45]}  Rb8 {[%clk 0:01:30]} 29. Rfc1 {[%clk 0:01:36]}  Kg8 {[%clk 0:01:29]} 30. Kf1 {[%clk 0:01:35]}  Kf7 {[%clk 0:01:28]} 31. Ng1 {[%clk 0:01:31]}  Kf6 {[%clk 0:01:25]} 32. Nhf3 {[%clk 0:01:29]}  Rbg8 {[%clk 0:01:24]} 33. Ne1 {[%clk 0:01:28]}  d5 {[%clk 0:01:17]} 34. Ngf3 {[%clk 0:01:25]}  Rd7 {[%clk 0:01:07]} 35. Ke2 {[%clk 0:01:24]}  Rb8 {[%clk 0:01:01]} 36. c4 {[%clk 0:01:20]}  Nd4+ {[%clk 0:00:51]} 37. Nxd4 {[%clk 0:01:18]}  Bxd4 {[%clk 0:00:52]} 38. Rcb1 {[%clk 0:01:10]}  Rg7 {[%clk 0:00:37]} 39. Ra6 {[%clk 0:01:07]}  dxe4 {[%clk 0:00:33]} 40. dxe4 {[%clk 0:01:06]}  b3 {[%clk 0:00:26]} 41. Kf1 {[%clk 0:00:52]}  Rb4 {[%clk 0:00:25]} 42. Rc6 {[%clk 0:00:50]}  Ra4 {[%clk 0:00:21]} 43. Nd3 {[%clk 0:00:49]}  Ra5 {[%clk 0:00:17]} 44. c5 {[%clk 0:00:35]}  Ra4 {[%clk 0:00:12]} 45. Nc1 {[%clk 0:00:29]}  Rb4 {[%clk 0:00:11]} 46. Nd3 {[%clk 0:00:24]}  Rc4 {[%clk 0:00:12]} 47. Ra6 {[%clk 0:00:23]}  Rc2 {[%clk 0:00:10]} 48. Rd1 {[%clk 0:00:19]}  Bxb2 {[%clk 0:00:07]} 49. Rb1 {[%clk 0:00:17]}  Bd4 {[%clk 0:00:07]} 50. Rxb3 {[%clk 0:00:17]}  Rg8 {[%clk 0:00:07]} 51. Ra7 {[%clk 0:00:15]}  Rc8 {[%clk 0:00:06]} 52. Ra6 {[%clk 0:00:13]}  Rd2 {[%clk 0:00:06]} 53. Ke1 {[%clk 0:00:12]}  Rc2 {[%clk 0:00:06]} 54. Kd1 {[%clk 0:00:10]}  Rc4 {[%clk 0:00:07]} 55. Ke2 {[%clk 0:00:10]}  Bxc5 {[%clk 0:00:05]} 56. Rc6 {[%clk 0:00:08]}  Rxe4+ {[%clk 0:00:05]} 57. Kf3 {[%clk 0:00:07]}  Rd4 {[%clk 0:00:03]} 58. Nxc5 {[%clk 0:00:07]}  Re8 {[%clk 0:00:03]} 59. Ne4+ {[%clk 0:00:06]}  Kf5 {[%clk 0:00:03]} 60. Nc5 {[%clk 0:00:06]}  e4+ {[%clk 0:00:03]} 61. Ke2 {[%clk 0:00:06]}  Red8 {[%clk 0:00:04]} 62. Rb2 {[%clk 0:00:04]}  R8d6 {[%clk 0:00:03]} 63. Rxd6 {[%clk 0:00:03]}  cxd6 {[%clk 0:00:03]} 64. Nb3 {[%clk 0:00:03]}  Rb4 {[%clk 0:00:03]} 65. Rb1 {[%clk 0:00:03]}  e5 {[%clk 0:00:03]} 66. Nd2 {[%clk 0:00:02]}  Ra4 {[%clk 0:00:04]} 67. Rb6 {[%clk 0:00:01]}  Ke6 {[%clk 0:00:03]} 0-1


[Site "https://www.chess.com"]

[Event "Late Titled Tuesday Blitz February 8 2022"]
[White "Chyngyz, Sultai"]
[Black "Romanchuk, Viktor"]
[WhiteFideId "13803158"]
[BlackFideId "14109271"]
[WhiteElo "1339"]
[BlackElo "2242"]
[Result "0-1"]
[Round "01"]
[TimeControl "180+1"]
[Date "2022.02.09"]
[WhiteClock "0:00:17"]
[BlackClock "0:00:11"]

1. e4 {[%clk 0:03:00]}  e6 {[%clk 0:02:59]} 2. d4 {[%clk 0:03:00]}  d5 {[%clk 0:02:59]} 3. e5 {[%clk 0:03:00]}  c5 {[%clk 0:02:58]} 4. c3 {[%clk 0:03:01]}  Nc6 {[%clk 0:02:58]} 5. Nf3 {[%clk 0:03:02]}  Bd7 {[%clk 0:02:58]} 6. Be2 {[%clk 0:03:02]}  f6 {[%clk 0:02:58]} 7. O-O {[%clk 0:03:03]}  Qb6 {[%clk 0:02:58]} 8. dxc5 {[%clk 0:03:02]}  Bxc5 {[%clk 0:02:57]} 9. exf6 {[%clk 0:03:02]}  Nxf6 {[%clk 0:02:57]} 10. b4 {[%clk 0:03:03]}  Be7 {[%clk 0:02:56]} 11. Be3 {[%clk 0:03:03]}  Qc7 {[%clk 0:02:57]} 12. Nbd2 {[%clk 0:03:01]}  O-O {[%clk 0:02:55]} 13. Nb3 {[%clk 0:03:00]}  Ne4 {[%clk 0:02:52]} 14. Rc1 {[%clk 0:02:52]}  a5 {[%clk 0:02:45]} 15. b5 {[%clk 0:02:03]}  Ne5 {[%clk 0:02:41]} 16. a4 {[%clk 0:01:24]}  Nxc3 {[%clk 0:02:25]} 17. Nxe5 {[%clk 0:00:55]}  Nxe2+ {[%clk 0:02:20]} 18. Qxe2 {[%clk 0:00:56]}  Qxe5 {[%clk 0:02:20]} 19. Nd4 {[%clk 0:00:53]}  Rac8 {[%clk 0:02:11]} 20. Nb3 {[%clk 0:00:41]}  Bb4 {[%clk 0:02:04]} 21. Qg4 {[%clk 0:00:37]}  Qf6 {[%clk 0:01:20]} 22. Bd4 {[%clk 0:00:17]}  Qh6 {[%clk 0:01:15]} 23. Rxc8 {[%clk 0:00:15]}  Bxc8 {[%clk 0:01:15]} 24. Be5 {[%clk 0:00:15]}  Rf5 {[%clk 0:01:10]} 25. Bg3 {[%clk 0:00:12]}  e5 {[%clk 0:01:08]} 26. Rd1 {[%clk 0:00:11]}  Rf8 {[%clk 0:01:05]} 27. Qe2 {[%clk 0:00:11]}  e4 {[%clk 0:00:59]} 28. Rxd5 {[%clk 0:00:11]}  Be6 {[%clk 0:00:59]} 29. Qxe4 {[%clk 0:00:10]}  Bxd5 {[%clk 0:00:59]} 30. Qxd5+ {[%clk 0:00:11]}  Kh8 {[%clk 0:00:59]} 31. h3 {[%clk 0:00:11]}  Qg6 {[%clk 0:00:56]} 32. Kh2 {[%clk 0:00:10]}  Qf7 {[%clk 0:00:53]} 33. Qd3 {[%clk 0:00:10]}  h6 {[%clk 0:00:47]} 34. Nd4 {[%clk 0:00:10]}  Qd5 {[%clk 0:00:47]} 35. Qe3 {[%clk 0:00:10]}  Bc5 {[%clk 0:00:46]} 36. Be5 {[%clk 0:00:10]}  Kg8 {[%clk 0:00:40]} 37. Qg3 {[%clk 0:00:09]}  Rf7 {[%clk 0:00:36]} 38. Nf3 {[%clk 0:00:09]}  Bxf2 {[%clk 0:00:25]} 39. Qg6 {[%clk 0:00:06]}  Bc5 {[%clk 0:00:18]} 40. Qg4 {[%clk 0:00:05]}  Bd6 {[%clk 0:00:17]} 41. Qc8+ {[%clk 0:00:05]}  Kh7 {[%clk 0:00:15]} 42. Qc2+ {[%clk 0:00:05]}  g6 {[%clk 0:00:13]} 43. Bxd6 {[%clk 0:00:05]}  Qxd6+ {[%clk 0:00:13]} 44. Kg1 {[%clk 0:00:06]}  Qb6+ {[%clk 0:00:11]} 45. Kh1 {[%clk 0:00:05]}  Qe3 {[%clk 0:00:12]} 46. Qc4 {[%clk 0:00:04]}  Re7 {[%clk 0:00:11]} 47. Kh2 {[%clk 0:00:02]}  Qe6 {[%clk 0:00:10]} 48. Qf4 {[%clk 0:00:02]}  Rf7 {[%clk 0:00:09]} 49. Qh4 {[%clk 0:00:03]}  Qf6 {[%clk 0:00:09]} 50. Qg4 {[%clk 0:00:03]}  Qf4+ {[%clk 0:00:09]} 51. Qxf4 {[%clk 0:00:03]}  Rxf4 {[%clk 0:00:09]} 52. Ne5 {[%clk 0:00:04]}  Rxa4 {[%clk 0:00:10]} 53. Nd7 {[%clk 0:00:04]}  Rb4 {[%clk 0:00:10]} 54. Nc5 {[%clk 0:00:05]}  Rxb5 {[%clk 0:00:10]} 55. Ne6 {[%clk 0:00:06]}  a4 {[%clk 0:00:09]} 56. Nd4 {[%clk 0:00:06]}  Rb4 {[%clk 0:00:08]} 57. Nc2 {[%clk 0:00:06]}  Rb2 {[%clk 0:00:09]} 58. Na3 {[%clk 0:00:07]}  b5 {[%clk 0:00:09]} 59. Nc4 {[%clk 0:00:08]}  bxc4 {[%clk 0:00:08]} 60. Kg3 {[%clk 0:00:09]}  a3 {[%clk 0:00:09]} 61. Kh4 {[%clk 0:00:09]}  a2 {[%clk 0:00:10]} 62. g4 {[%clk 0:00:10]}  a1=Q {[%clk 0:00:10]} 63. g5 {[%clk 0:00:11]}  hxg5+ {[%clk 0:00:09]} 64. Kg4 {[%clk 0:00:12]}  Rg2+ {[%clk 0:00:10]} 65. Kf3 {[%clk 0:00:12]}  Qf1+ {[%clk 0:00:10]} 66. Ke4 {[%clk 0:00:13]}  Re2+ {[%clk 0:00:10]} 67. Kd4 {[%clk 0:00:14]}  Qf4+ {[%clk 0:00:10]} 68. Kc5 {[%clk 0:00:14]}  Re5+ {[%clk 0:00:10]} 69. Kb4 {[%clk 0:00:15]}  c3+ {[%clk 0:00:10]} 70. Kxc3 {[%clk 0:00:16]}  Re3+ {[%clk 0:00:10]} 71. Kb2 {[%clk 0:00:17]}  Qf2+ {[%clk 0:00:10]} 72. Kc1 {[%clk 0:00:17]}  Re1# {[%clk 0:00:11]} 0-1


[Site "https://www.chess.com"]

[Event "Late Titled Tuesday Blitz February 8 2022"]
[White "Coelho, Ramyres Santana"]
[Black "Michelakos, Panagiotis"]
[WhiteFideId "2120690"]
[BlackFideId "4216067"]
[WhiteElo "1888"]
[BlackElo "2140"]
[Result "0-1"]
[Round "01"]
[TimeControl "180+1"]
[Date "2022.02.09"]
[WhiteClock "0:00:04"]
[BlackClock "0:00:04"]

1. e4 {[%clk 0:02:58]}  c5 {[%clk 0:02:52]} 2. Nf3 {[%clk 0:02:58]}  g6 {[%clk 0:02:52]} 3. d4 {[%clk 0:02:57]}  cxd4 {[%clk 0:02:53]} 4. c3 {[%clk 0:02:57]}  Bg7 {[%clk 0:02:52]} 5. cxd4 {[%clk 0:02:56]}  d6 {[%clk 0:02:52]} 6. Nc3 {[%clk 0:02:55]}  Nf6 {[%clk 0:02:51]} 7. Be2 {[%clk 0:02:52]}  Bg4 {[%clk 0:02:47]} 8. O-O {[%clk 0:02:49]}  O-O {[%clk 0:02:47]} 9. h3 {[%clk 0:02:49]}  Bxf3 {[%clk 0:02:46]} 10. Bxf3 {[%clk 0:02:49]}  Nc6 {[%clk 0:02:47]} 11. Be3 {[%clk 0:02:46]}  Nd7 {[%clk 0:02:47]} 12. d5 {[%clk 0:02:45]}  Nce5 {[%clk 0:02:47]} 13. Be2 {[%clk 0:02:46]}  Rc8 {[%clk 0:02:46]} 14. Rc1 {[%clk 0:02:33]}  a6 {[%clk 0:02:43]} 15. Bd4 {[%clk 0:02:22]}  Qa5 {[%clk 0:02:35]} 16. f4 {[%clk 0:02:15]}  Nc4 {[%clk 0:01:33]} 17. Bxg7 {[%clk 0:02:14]}  Kxg7 {[%clk 0:01:28]} 18. Qd4+ {[%clk 0:02:14]}  Nce5 {[%clk 0:01:17]} 19. fxe5 {[%clk 0:02:13]}  Nxe5 {[%clk 0:01:17]} 20. Kh1 {[%clk 0:01:56]}  b5 {[%clk 0:01:15]} 21. Bg4 {[%clk 0:01:46]}  Rc4 {[%clk 0:01:13]} 22. Qe3 {[%clk 0:01:39]}  b4 {[%clk 0:01:09]} 23. Ne2 {[%clk 0:01:31]}  Qxa2 {[%clk 0:01:06]} 24. Rxc4 {[%clk 0:01:14]}  Qxc4 {[%clk 0:01:07]} 25. Rc1 {[%clk 0:01:09]}  Qa2 {[%clk 0:01:07]} 26. Rc7 {[%clk 0:01:05]}  Re8 {[%clk 0:00:45]} 27. Qd4 {[%clk 0:00:55]}  a5 {[%clk 0:00:41]} 28. Nf4 {[%clk 0:00:51]}  Qb1+ {[%clk 0:00:40]} 29. Kh2 {[%clk 0:00:50]}  Qf1 {[%clk 0:00:35]} 30. Qe3 {[%clk 0:00:28]}  a4 {[%clk 0:00:25]} 31. Bd7 {[%clk 0:00:27]}  Ra8 {[%clk 0:00:23]} 32. Bc6 {[%clk 0:00:27]}  Rf8 {[%clk 0:00:14]} 33. Rxe7 {[%clk 0:00:25]}  a3 {[%clk 0:00:14]} 34. Ne6+ {[%clk 0:00:25]}  Kg8 {[%clk 0:00:15]} 35. Nxf8 {[%clk 0:00:25]}  Kxf8 {[%clk 0:00:15]} 36. Re8+ {[%clk 0:00:25]}  Kg7 {[%clk 0:00:15]} 37. bxa3 {[%clk 0:00:25]}  bxa3 {[%clk 0:00:15]} 38. Qxa3 {[%clk 0:00:19]}  Nd3 {[%clk 0:00:13]} 39. Qc3+ {[%clk 0:00:18]}  Kh6 {[%clk 0:00:13]} 40. Qc2 {[%clk 0:00:17]}  Qf4+ {[%clk 0:00:09]} 41. g3 {[%clk 0:00:14]}  Qe3 {[%clk 0:00:04]} 42. Qg2 {[%clk 0:00:13]}  Ne1 {[%clk 0:00:05]} 43. Qg1 {[%clk 0:00:08]}  Nf3+ {[%clk 0:00:05]} 44. Kg2 {[%clk 0:00:05]}  Nxg1 {[%clk 0:00:06]} 45. h4 {[%clk 0:00:03]}  Nf3 {[%clk 0:00:05]} 46. Kh3 {[%clk 0:00:03]}  Qf2 {[%clk 0:00:03]} 47. Kg4 {[%clk 0:00:04]}  Ng1 {[%clk 0:00:03]} 48. h5 {[%clk 0:00:04]}  Qf3+ {[%clk 0:00:03]} 49. Kh4 {[%clk 0:00:04]}  Qxh5# {[%clk 0:00:04]} 0-1


[Site "https://www.chess.com"]

[Event "Late Titled Tuesday Blitz February 8 2022"]
[White "Costachi, Mihnea"]
[Black "Estrada Nieto, Julian"]
[WhiteFideId "1217518"]
[BlackFideId "5101018"]
[WhiteElo "2464"]
[BlackElo "2246"]
[Result "1-0"]
[Round "01"]
[TimeControl "180+1"]
[Date "2022.02.09"]
[WhiteClock "0:01:08"]
[BlackClock "0:00:20"]

1. e4 {[%clk 0:03:00]}  e5 {[%clk 0:02:58]} 2. f4 {[%clk 0:02:59]}  d5 {[%clk 0:02:57]} 3. exd5 {[%clk 0:02:56]}  exf4 {[%clk 0:02:57]} 4. Nf3 {[%clk 0:02:47]}  Nf6 {[%clk 0:02:57]} 5. Bb5+ {[%clk 0:02:41]}  c6 {[%clk 0:02:56]} 6. dxc6 {[%clk 0:02:39]}  bxc6 {[%clk 0:02:56]} 7. Bc4 {[%clk 0:02:34]}  Bd6 {[%clk 0:02:56]} 8. O-O {[%clk 0:02:34]}  O-O {[%clk 0:02:55]} 9. Nc3 {[%clk 0:02:26]}  Bg4 {[%clk 0:02:39]} 10. d3 {[%clk 0:02:19]}  Nbd7 {[%clk 0:02:36]} 11. Ne4 {[%clk 0:02:19]}  Nxe4 {[%clk 0:02:34]} 12. dxe4 {[%clk 0:02:20]}  Ne5 {[%clk 0:02:24]} 13. Be2 {[%clk 0:02:18]}  Qb6+ {[%clk 0:02:16]} 14. Kh1 {[%clk 0:02:17]}  Bxf3 {[%clk 0:02:16]} 15. Bxf3 {[%clk 0:02:17]}  Rad8 {[%clk 0:02:03]} 16. Qe2 {[%clk 0:02:10]}  Rfe8 {[%clk 0:01:56]} 17. c3 {[%clk 0:02:08]}  Nxf3 {[%clk 0:01:55]} 18. Qxf3 {[%clk 0:02:07]}  f6 {[%clk 0:01:36]} 19. Rb1 {[%clk 0:02:06]}  Qa6 {[%clk 0:01:31]} 20. a3 {[%clk 0:02:02]}  Be5 {[%clk 0:01:25]} 21. Bxf4 {[%clk 0:02:00]}  Rd3 {[%clk 0:01:25]} 22. Qe2 {[%clk 0:01:53]}  Qc4 {[%clk 0:01:22]} 23. Rbd1 {[%clk 0:01:45]}  Rxc3 {[%clk 0:01:18]} 24. Qh5 {[%clk 0:01:30]}  g6 {[%clk 0:01:14]} 25. Qh4 {[%clk 0:01:31]}  Rc2 {[%clk 0:00:49]} 26. Bxe5 {[%clk 0:01:31]}  Qe2 {[%clk 0:00:38]} 27. Rg1 {[%clk 0:01:08]}  fxe5 {[%clk 0:00:29]} 28. Rd7 {[%clk 0:01:08]}  Rd2 {[%clk 0:00:20]} 29. Qxh7+ {[%clk 0:01:08]} 1-0


[Site "https://www.chess.com"]

[Event "Late Titled Tuesday Blitz February 8 2022"]
[White "Curtis, John"]
[Black "Potapova, Margarita"]
[WhiteFideId "3200256"]
[BlackFideId "14126869"]
[WhiteElo "2203"]
[BlackElo "2209"]
[Result "1-0"]
[Round "01"]
[TimeControl "180+1"]
[Date "2022.02.09"]
[WhiteClock "0:01:09"]
[BlackClock "0:00:03"]

1. e4 {[%clk 0:03:00]}  c5 {[%clk 0:02:53]} 2. Nf3 {[%clk 0:03:00]}  d6 {[%clk 0:02:54]} 3. d4 {[%clk 0:03:00]}  cxd4 {[%clk 0:02:55]} 4. Nxd4 {[%clk 0:03:00]}  Nf6 {[%clk 0:02:55]} 5. Nc3 {[%clk 0:03:00]}  a6 {[%clk 0:02:56]} 6. Be2 {[%clk 0:02:59]}  e5 {[%clk 0:02:56]} 7. Nb3 {[%clk 0:02:58]}  Be7 {[%clk 0:02:57]} 8. Be3 {[%clk 0:02:58]}  O-O {[%clk 0:02:56]} 9. O-O {[%clk 0:02:58]}  Be6 {[%clk 0:02:56]} 10. f4 {[%clk 0:02:58]}  exf4 {[%clk 0:02:56]} 11. Bxf4 {[%clk 0:02:58]}  Nc6 {[%clk 0:02:56]} 12. Kh1 {[%clk 0:02:57]}  Ne5 {[%clk 0:02:56]} 13. Nd4 {[%clk 0:02:56]}  Re8 {[%clk 0:02:52]} 14. Nxe6 {[%clk 0:02:56]}  fxe6 {[%clk 0:02:51]} 15. Bxe5 {[%clk 0:02:56]}  dxe5 {[%clk 0:02:52]} 16. Bg4 {[%clk 0:02:56]}  Bc5 {[%clk 0:02:51]} 17. Qe2 {[%clk 0:02:46]}  Bd4 {[%clk 0:02:47]} 18. Nd1 {[%clk 0:02:44]}  Rc8 {[%clk 0:02:36]} 19. c3 {[%clk 0:02:43]}  Bb6 {[%clk 0:02:37]} 20. Bf3 {[%clk 0:02:31]}  Qc7 {[%clk 0:02:28]} 21. Nf2 {[%clk 0:02:29]}  Rcd8 {[%clk 0:02:15]} 22. Ng4 {[%clk 0:02:28]}  Nd7 {[%clk 0:02:07]} 23. Ne3 {[%clk 0:02:19]}  Bxe3 {[%clk 0:02:02]} 24. Qxe3 {[%clk 0:02:19]}  Qc5 {[%clk 0:02:02]} 25. Qg5 {[%clk 0:02:12]}  Qe7 {[%clk 0:01:57]} 26. Qg3 {[%clk 0:02:10]}  Rf8 {[%clk 0:01:49]} 27. Rfd1 {[%clk 0:02:10]}  h6 {[%clk 0:01:36]} 28. Rd2 {[%clk 0:02:09]}  Nb6 {[%clk 0:01:17]} 29. Rad1 {[%clk 0:02:06]}  Rxd2 {[%clk 0:01:17]} 30. Rxd2 {[%clk 0:02:06]}  Nc4 {[%clk 0:01:18]} 31. Rf2 {[%clk 0:01:56]}  Rd8 {[%clk 0:01:15]} 32. h3 {[%clk 0:01:52]}  Qd6 {[%clk 0:00:46]} 33. Bh5 {[%clk 0:01:39]}  Rf8 {[%clk 0:00:39]} 34. Rxf8+ {[%clk 0:01:37]}  Qxf8 {[%clk 0:00:40]} 35. Bg4 {[%clk 0:01:23]}  Qf6 {[%clk 0:00:35]} 36. b3 {[%clk 0:01:13]}  Nd2 {[%clk 0:00:31]} 37. Qd3 {[%clk 0:01:12]}  Qf4 {[%clk 0:00:15]} 38. Bxe6+ {[%clk 0:01:09]}  Kh7 {[%clk 0:00:04]} 39. Bf5+ {[%clk 0:01:09]}  g6 {[%clk 0:00:02]} 40. Qd7+ {[%clk 0:01:09]}  Kh8 {[%clk 0:00:03]} 41. Qe8+ {[%clk 0:01:09]}  Kg7 {[%clk 0:00:03]} 42. Qxg6+ {[%clk 0:01:09]}  Kf8 {[%clk 0:00:03]} 43. Qd6+ {[%clk 0:01:09]}  Ke8 {[%clk 0:00:03]} 44. Bg6+ {[%clk 0:01:09]} 1-0


[Site "https://www.chess.com"]

[Event "Late Titled Tuesday Blitz February 8 2022"]
[White "Djokic, Mihailo"]
[Black "Laith, Kasib"]
[WhiteFideId "976440"]
[BlackFideId "4801059"]
[WhiteElo "2008"]
[BlackElo "1982"]
[Result "0-1"]
[Round "01"]
[TimeControl "180+1"]
[Date "2022.02.09"]
[WhiteClock "0:01:02"]
[BlackClock "0:00:16"]

1. d4 {[%clk 0:03:00]}  d6 {[%clk 0:02:49]} 2. Nf3 {[%clk 0:03:00]}  Nf6 {[%clk 0:02:48]} 3. g3 {[%clk 0:02:58]}  g6 {[%clk 0:02:47]} 4. Bg2 {[%clk 0:02:58]}  Bg7 {[%clk 0:02:47]} 5. O-O {[%clk 0:02:59]}  O-O {[%clk 0:02:47]} 6. c4 {[%clk 0:02:58]}  Nc6 {[%clk 0:02:46]} 7. d5 {[%clk 0:02:59]}  Na5 {[%clk 0:02:45]} 8. Qd3 {[%clk 0:02:53]}  c5 {[%clk 0:02:43]} 9. Nc3 {[%clk 0:02:51]}  Bf5 {[%clk 0:02:42]} 10. e4 {[%clk 0:02:51]}  Bd7 {[%clk 0:02:42]} 11. Re1 {[%clk 0:02:42]}  b5 {[%clk 0:01:55]} 12. cxb5 {[%clk 0:02:40]}  c4 {[%clk 0:01:54]} 13. Qc2 {[%clk 0:02:37]}  Qc7 {[%clk 0:01:44]} 14. e5 {[%clk 0:02:34]}  Ng4 {[%clk 0:01:32]} 15. e6 {[%clk 0:02:30]}  Bc8 {[%clk 0:01:19]} 16. Ng5 {[%clk 0:02:16]}  fxe6 {[%clk 0:01:04]} 17. dxe6 {[%clk 0:02:09]}  Rxf2 {[%clk 0:01:03]} 18. Qe4 {[%clk 0:02:06]}  Bb7 {[%clk 0:01:01]} 19. Nd5 {[%clk 0:02:02]}  Bxd5 {[%clk 0:00:45]} 20. Qxd5 {[%clk 0:02:02]}  Raf8 {[%clk 0:00:41]} 21. Bf4 {[%clk 0:02:02]}  Rxb2 {[%clk 0:00:35]} 22. Rac1 {[%clk 0:02:00]}  Rxa2 {[%clk 0:00:25]} 23. Nf7 {[%clk 0:01:56]}  Qb6+ {[%clk 0:00:22]} 24. Be3 {[%clk 0:01:32]}  Nxe3 {[%clk 0:00:21]} 25. Qe4 {[%clk 0:01:09]}  Ng4+ {[%clk 0:00:20]} 26. Re3 {[%clk 0:01:08]}  Nxe3 {[%clk 0:00:19]} 27. Kh1 {[%clk 0:01:06]}  Ng4 {[%clk 0:00:19]} 28. Rf1 {[%clk 0:01:04]}  Nf2+ {[%clk 0:00:19]} 29. Rxf2 {[%clk 0:01:04]}  Qxf2 {[%clk 0:00:19]} 30. h4 {[%clk 0:01:02]}  Ra1+ {[%clk 0:00:18]} 31. Kh2 {[%clk 0:01:03]}  Rg1 {[%clk 0:00:17]} 32. b6 {[%clk 0:01:01]}  axb6 {[%clk 0:00:16]} 33. h5 {[%clk 0:01:01]}  Rxg2+ {[%clk 0:00:16]} 34. Qxg2 {[%clk 0:01:01]}  Qxg2+ {[%clk 0:00:16]} 35. Kxg2 {[%clk 0:01:01]}  Rxf7 {[%clk 0:00:16]} 36. exf7+ {[%clk 0:01:01]}  Kxf7 {[%clk 0:00:16]} 37. hxg6+ {[%clk 0:01:02]} 0-1


[Site "https://www.chess.com"]